bitfinex-derivatives/quotes_SOLF0:USTF0_20250117
["timestamp","ask_amount","ask_price","bid_price","bid_amount"]
[1737126145289,17.55076197,219.24,219.08,18.98016197]
[1737126145492,1.5679,219.31,219.08,18.98016197]
[1737126145493,17.55076197,219.28,219.08,18.98016197]
[1737126145693,1.519,219.3,219.08,18.98016197]
[1737126145888,4.5608,219.25,219.08,18.98016197]
[1737126146288,1.519,219.3,219.19,4.5618]
[1737126146488,4.561,219.24,219.08,18.98016197]
[1737126146685,1.519,219.3,219.12,17.55076197]
[1737126146884,4.5594,219.32,219.17,17.55076197]
[1737126147088,0.91174325,219.36,219.21,17.55076197]
[1737126147396,19.02426197,219.4,219.3,4.5595]
[1737126147694,4.5588,219.35,219.22,5.66]
[1737126148294,19.02426197,219.4,219.22,5.66]
[1737126148490,184.02601143,219.58,219.3,17.55076197]
[1737126148789,17.55076197,219.52,219.39,4.5577]
[1737126148998,4.5563,219.47,219.35,5.66]
[1737126149193,17.55076197,219.52,219.35,5.66]
[1737126149394,17.55076197,219.52,219.39,4.5576]
[1737126149798,17.55076197,219.52,219.37,4.5582]
[1737126150487,17.55076197,219.48,219.35,10.2186]
[1737126150887,4.5572,219.42,219.35,10.2186]
[1737126151093,17.55076197,219.44,219.31,10.1253]
[1737126151294,17.55076197,219.48,219.31,10.1253]
[1737126151494,17.55076197,219.44,219.31,10.1253]
[1737126152298,4.5574,219.42,219.34,4.5588]
[1737126152600,17.55076197,219.48,219.31,10.1253]
[1737126153493,17.55076197,219.52,219.31,10.1253]
[1737126153797,4.5562,219.47,219.41,4.5573]
[1737126153997,17.55076197,219.52,219.34,17.55076197]
[1737126154193,4.557,219.43,219.37,4.5582]
[1737126154399,17.55076197,219.48,219.31,10.1253]
[1737126154894,4.5574,219.42,219.36,4.5584]
[1737126155094,4.5574,219.42,219.31,10.1253]
[1737126155389,17.55076197,219.48,219.35,4.5585]
[1737126155997,4.5574,219.42,219.35,4.5585]
[1737126156189,17.55076197,219.48,219.35,4.5585]
[1737126156392,17.55076197,219.48,219.31,10.1253]
[1737126156600,4.5581,219.38,219.32,4.5592]
[1737126156797,17.55076197,219.44,219.32,4.5592]
[1737126157092,4.5584,219.37,219.31,1.4745]
[1737126157299,17.55076197,219.4,219.27,5.6]
[1737126157489,17.55076197,219.4,219.23,1.5601]
[1737126157490,17.55076197,219.4,219.26,5.6]
[1737126157800,17.55076197,219.36,219.27,4.5603]
[1737126158201,17.55076197,219.36,219.26,5.6]
[1737126159095,4.5599,219.29,219.26,5.6]
[1737126159492,4.5599,219.29,219.14,85.42]
[1737126159493,17.55076197,219.32,219.15,3.066]
[1737126159700,17.55076197,219.32,219.16,7.0696]
[1737126159899,17.55076197,219.28,219.16,7.0696]
[1737126160103,4.561,219.24,219.16,7.0696]
[1737126160798,4.5612,219.23,219.16,7.0696]
[1737126160994,4.5612,219.23,219.16,1.4896]
[1737126161299,4.5614,219.22,219.18,4.5622]
[1737126161499,4.5614,219.22,219.16,1.4896]
[1737126161705,17.55076197,219.28,219.16,1.4896]
[1737126162200,1.4156,219.33,219.16,1.4896]
[1737126162903,17.55076197,219.34,219.18,17.55076197]
[1737126163100,17.55076197,219.34,219.16,1.4896]
[1737126163101,4.5599,219.29,219.24,4.5607]
[1737126164207,17.55076197,219.34,219.25,4.5607]
[1737126164598,17.55076197,219.34,219.16,1.4896]
[1737126164998,19.04756197,219.38,219.16,1.4896]
[1737126165404,4.5593,219.32,219.16,1.4896]
[1737126165903,19.04756197,219.38,219.16,1.4896]
[1737126165904,4.5589,219.34,219.3,4.5597]
[1737126166106,17.55076197,219.42,219.26,5.54]
[1737126166304,1.5103,219.45,219.27,8.5384]
[1737126166504,17.55076197,219.42,219.27,8.5384]
[1737126166805,17.55076197,219.38,219.27,7.1012]
[1737126166997,4.5591,219.33,219.28,4.5601]
[1737126167798,17.55076197,219.38,219.27,7.1012]
[1737126168003,4.5586,219.36,219.31,4.5594]
[1737126168203,4.5586,219.36,219.27,7.1012]
[1737126168502,17.55076197,219.38,219.27,7.1012]
[1737126169008,4.5586,219.36,219.32,4.5593]
[1737126169709,4.5581,219.38,219.27,7.1012]
[1737126170202,4.5585,219.36,219.27,7.1012]
[1737126170408,17.55076197,219.42,219.27,7.1012]
[1737126170806,4.5592,219.33,219.27,7.1012]
[1737126171406,4.559,219.34,219.27,7.1012]
[1737126171703,17.55076197,219.34,219.18,1.4372]
[1737126171900,17.55076197,219.3,219.17,1.4243]
[1737126172302,4.5602,219.28,219.22,4.5612]
[1737126172503,4.5602,219.28,219.17,1.4243]
[1737126173004,4.5603,219.27,219.23,4.5611]
[1737126173707,4.5613,219.23,219.19,4.5618]
[1737126174300,1.4654,219.29,219.13,2.9876]
[1737126174501,17.55076197,219.26,219.16,4.5626]
[1737126175311,17.55076197,219.26,219.13,2.9876]
[1737126176111,17.55076197,219.26,219.13,1.4513]
[1737126176613,4.5621,219.19,219.13,6.0144]
[1737126176912,17.55076197,219.22,219.13,6.0144]
[1737126177306,17.55076197,219.22,219.13,1.4513]
[1737126177507,17.55076197,219.22,219.11,4.5634]
[1737126177910,4.562,219.19,219.11,4.5634]
[1737126178104,17.55076197,219.22,219.11,4.5634]
[1737126178706,4.5626,219.17,219.11,4.5634]
[1737126179215,4.562,219.19,219.07,5.52]
[1737126179415,17.55076197,219.22,219.07,5.52]
[1737126179808,4.5627,219.16,219.11,4.5634]
[1737126180208,4.5627,219.16,219.07,5.52]
[1737126180413,4.5627,219.16,219.04,1.5027]
[1737126180618,17.55076197,219.18,219.04,1.5027]
[1737126180817,17.55076197,219.18,219.03,2.9667]
[1737126181022,4.562,219.19,219.04,1.5372]
[1737126181210,17.55076197,219.23,219.07,17.55076197]
[1737126181415,17.55076197,219.27,219.04,1.5372]
[1737126181615,4.5621,219.19,219.14,4.5629]
[1737126181918,17.55076197,219.23,219.05,17.55076197]
[1737126182313,17.55076197,219.19,219.05,5.5]
[1737126182520,17.55076197,219.19,219.04,7.0372]
[1737126182720,4.5639,219.1,219.06,4.5646]
[1737126183020,2.9817,219.18,219.04,1.5372]
[1737126183222,4.5631,219.14,219.07,4.5644]
[1737126183422,2.9817,219.18,219.04,1.5372]
[1737126184022,17.55076197,219.15,219.04,1.5372]
[1737126184416,17.55076197,219.15,218.97,17.55076197]
[1737126184417,17.55076197,219.07,218.85,50.56609974]
[1737126184725,17.55076197,219.03,218.89,1.4764]
[1737126185123,17.55076197,219.11,218.9,23.11076197]
[1737126185325,1.4741,219.13,218.9,23.11076197]
[1737126185525,17.55076197,219.11,218.9,23.11076197]
[1737126185727,4.5643,219.08,219.02,4.5655]
[1737126186222,1.4741,219.13,218.95,1.5503]
[1737126186223,6.0374,219.13,218.95,1.5503]
[1737126186424,6.0374,219.13,218.98,17.55076197]
[1737126186624,6.0374,219.13,218.99,1.4777]
[1737126186818,1.4741,219.13,219.07,4.5644]
[1737126187025,17.55076197,219.2,219.02,17.55076197]
[1737126187225,17.55076197,219.2,219.03,1.4184]
[1737126187826,17.55076197,219.2,219.04,5.54]
[1737126188031,17.55076197,219.2,219.04,7.0629]
[1737126188732,4.5632,219.14,219.07,4.5644]
[1737126188930,17.55076197,219.2,219.04,7.0629]
[1737126189131,17.55076197,219.16,219.04,7.0629]
[1737126189332,17.55076197,219.16,219.04,5.54]
[1737126189629,17.55076197,219.12,219.03,1.4184]
[1737126190225,17.55076197,219.16,219.03,1.4184]
[1737126190630,4.5632,219.14,219.07,4.5644]
[1737126190830,17.55076197,219.16,219.07,4.5644]
[1737126191234,4.563,219.15,219.08,4.5641]
[1737126191431,17.55076197,219.16,219.03,1.4184]
[1737126191831,4.5634,219.13,219.07,4.5645]
[1737126192234,4.5634,219.13,219.03,1.4184]
[1737126192432,17.55076197,219.2,219.03,1.4184]
[1737126192636,17.55076197,219.24,219.06,17.55076197]
[1737126192831,4.5615,219.22,219.17,4.5624]
[1737126193028,2.9414,219.27,219.1,17.55076197]
[1737126193227,2.9414,219.27,219.11,3.0729]
[1737126193429,17.55076197,219.24,219.11,3.0729]
[1737126194135,4.5619,219.2,219.11,3.0729]
[1737126194336,17.55076197,219.2,219.07,5.52]
[1737126194733,17.55076197,219.24,219.07,5.52]
[1737126194932,1.4447,219.27,219.1,17.55076197]
[1737126195129,1.5453,219.33,219.1,17.55076197]
[1737126195333,4.5605,219.27,219.2,4.5616]
[1737126195630,17.55076197,219.3,219.1,17.55076197]
[1737126195836,4.5603,219.27,219.22,4.5613]
[1737126196036,17.55076197,219.3,219.18,5.52]
[1737126196235,17.55076197,219.32,219.18,5.52]
[1737126196441,4.5603,219.27,219.18,5.52]
[1737126196738,17.55076197,219.28,219.18,5.52]
[1737126197038,4.5613,219.23,219.18,5.52]
[1737126197533,17.55076197,219.28,219.18,5.52]
[1737126197733,17.55076197,219.24,219.1,5.52]
[1737126198041,17.55076197,219.2,219.1,5.52]
[1737126198339,17.55076197,219.24,219.1,5.52]
[1737126198535,17.55076197,219.24,219.14,4.563]
[1737126198728,4.5616,219.21,219.1,5.52]
[1737126199435,22.11176197,219.24,219.1,23.07076197]
[1737126199639,17.55076197,219.28,219.1,23.07076197]
[1737126200134,4.5608,219.25,219.1,23.07076197]
[1737126200329,13.67,219.42,219.1,23.07076197]
[1737126200330,9.1139,219.44,219.23,17.55076197]
[1737126200534,18.98916197,219.44,219.24,6.9658]
[1737126200841,1.5541,219.43,219.24,9.9757]
[1737126201035,1.5541,219.43,219.27,17.55076197]
[1737126201235,1.4384,219.44,219.34,4.5588]
[1737126201433,1.4384,219.44,219.27,17.55076197]
[1737126201832,4.5572,219.43,219.32,4.5592]
[1737126202031,17.55076197,219.48,219.31,17.55076197]
[1737126202439,1.4384,219.54,219.31,17.55076197]
[1737126202638,1.4384,219.54,219.28,17.55076197]
[1737126202839,17.55076197,219.5,219.32,17.55076197]
[1737126203239,17.55076197,219.46,219.28,17.55076197]
[1737126203836,17.55076197,219.46,219.34,4.5588]
[1737126204144,17.55076197,219.42,219.26,5.56]
[1737126205449,4.5581,219.38,219.32,4.5592]
[1737126205942,17.55076197,219.42,219.36,4.5584]
[1737126206146,17.55076197,219.42,219.26,5.56]
[1737126206747,4.5581,219.38,219.32,4.5592]
[1737126207449,4.5578,219.4,219.32,4.5592]
[1737126207645,17.55076197,219.41,219.32,4.5592]
[1737126208046,17.55076197,219.41,219.26,5.56]
[1737126208047,4.5578,219.39,219.3,4.5596]
[1737126208243,4.5578,219.39,219.26,5.56]
[1737126209045,4.558,219.38,219.26,5.56]
[1737126210151,4.558,219.38,219.32,4.5592]
[1737126210544,17.55076197,219.41,219.26,5.56]
[1737126210740,17.55076197,219.28,219.09,25.28304986]
[1737126210946,17.55076197,219.28,219.13,1.4289]
[1737126211250,17.55076197,219.2,219.09,6.32076246]
[1737126211449,4.5617,219.21,219.09,6.32076246]
[1737126211652,17.55076197,219.24,219.15,4.5628]
[1737126212045,17.55076197,219.24,219.06,1.4289]
[1737126212046,4.5611,219.24,219.08,17.55076197]
[1737126212553,4.5608,219.25,219.08,17.55076197]
[1737126212751,17.55076197,219.28,219.08,17.55076197]
[1737126213253,4.5605,219.26,219.14,4.563]
[1737126213452,4.5605,219.26,219.13,5.58]
[1737126213753,17.55076197,219.28,219.13,5.58]
[1737126213952,4.5608,219.25,219.18,4.5622]
[1737126214257,17.55076197,219.28,219.18,4.5622]
[1737126214454,4.5606,219.26,219.18,4.5622]
[1737126214852,17.55076197,219.28,219.13,5.58]
[1737126215650,4.5605,219.26,219.13,5.58]
[1737126215850,17.55076197,219.24,219.13,5.58]
[1737126216251,17.55076197,219.24,219.2,4.5617]
[1737126216446,17.55076197,219.24,219.13,5.58]
[1737126216753,22.11186197,219.24,219.17,4.5623]
[1737126217150,17.55076197,219.24,219.17,4.5623]
[1737126217755,4.5611,219.23,219.18,4.5622]
[1737126218249,17.55076197,219.2,219.16,4.5625]
[1737126218455,17.55076197,219.2,219.06,1.4289]
[1737126218652,17.55076197,219.13,219.06,1.4289]
[1737126218854,17.55076197,219.17,219.06,1.4289]
[1737126219353,17.55076197,219.13,219.06,1.4289]
[1737126219555,17.55076197,219.13,218.97,5.58]
[1737126219851,17.55076197,219.09,218.97,3.0741]
[1737126220452,17.55076197,219.05,218.97,3.0741]
[1737126220653,17.55076197,219.05,218.99,4.5661]
[1737126220654,4.5651,219.04,218.99,4.5661]
[1737126220846,17.55076197,219.05,218.97,1.5578]
[1737126221051,17.55076197,219.05,218.91,7.0417]
[1737126221253,17.55076197,219.05,218.92,1.5578]
[1737126221555,17.55076197,219.01,218.92,1.5578]
[1737126221947,4.5662,218.99,218.94,4.5672]
[1737126222658,17.55076197,218.97,218.87,1.5578]
[1737126223261,22.11746197,218.97,218.89,4.5682]
[1737126223649,17.55076197,218.97,218.87,1.5578]
[1737126223856,4.5672,218.94,218.87,1.5578]
[1737126224054,17.55076197,218.97,218.87,1.5578]
[1737126225959,3.1109,219.0,218.87,1.5578]
[1737126226361,4.5664,218.98,218.87,1.5578]
[1737126226662,17.55076197,218.94,218.8,8.4975]
[1737126226961,17.55076197,218.9,218.76,1.5592]
[1737126227162,17.55076197,218.9,218.77,1.5676]
[1737126227853,17.55076197,218.9,218.84,4.5692]
[1737126228659,4.5682,218.89,218.84,4.5692]
[1737126229462,17.55076197,218.9,218.77,1.5676]
[1737126229655,4.5687,218.87,218.77,1.5676]
[1737126230164,22.11886197,218.9,218.8,4.5699]
[1737126230360,17.55076197,218.9,218.77,1.5676]
[1737126230754,4.5683,218.89,218.85,4.569]
[1737126231661,17.55076197,218.9,218.86,4.5688]
[1737126231860,17.55076197,218.94,218.77,1.5676]
[1737126232059,17.55076197,218.86,218.7,3.83751717]
[1737126232266,17.55076197,218.78,218.69,1.5045]
[1737126232462,17.55076197,218.78,218.57,23.09076197]
[1737126232668,17.55076197,218.74,218.57,17.55076197]
[1737126232961,17.55076197,218.74,218.56,7.0445]
[1737126233166,17.55076197,218.7,218.56,7.0445]
[1737126233365,4.5735,218.64,218.58,4.5745]
[1737126233563,17.55076197,218.7,218.56,1.5045]
[1737126234969,17.55076197,218.66,218.56,1.5045]
[1737126235871,17.55076197,218.7,218.56,1.5045]
[1737126236564,22.12306197,218.7,218.56,1.5045]
[1737126236866,17.55076197,218.7,218.56,1.5045]
[1737126237168,17.55076197,218.7,218.66,4.573]
[1737126237469,17.55076197,218.7,218.56,1.5045]
[1737126237670,4.5725,218.69,218.61,4.574]
[1737126237966,17.55076197,218.66,218.56,1.5045]
[1737126238575,17.55076197,218.62,218.5,1.4196]
[1737126238869,17.55076197,218.62,218.5,6.9596]
[1737126239262,17.55076197,218.68,218.5,6.9596]
[1737126239572,17.55076197,218.68,218.51,0.840613]
[1737126239768,2.9887,218.77,218.51,0.840613]
[1737126239769,17.55076197,218.72,218.53,17.55076197]
[1737126239973,2.9887,218.77,218.5,6.9596]
[1737126239974,2.9887,218.77,218.57,17.55076197]
[1737126240269,2.9887,218.77,218.73,4.5715]
[1737126240671,2.9887,218.77,218.64,5.54]
[1737126240875,2.9887,218.77,218.65,1.4499]
[1737126241368,2.9887,218.77,218.68,4.5725]
[1737126241562,2.9887,218.77,218.65,1.4499]
[1737126242370,17.55076197,218.69,218.53,17.55076197]
[1737126242571,17.55076197,218.69,218.63,4.5735]
[1737126242765,17.55076197,218.69,218.56,5.52]
[1737126243165,22.12316197,218.69,218.63,4.5736]
[1737126243365,28.73439683,218.67,218.63,4.5736]
[1737126243672,33.30639683,218.71,218.65,4.5732]
[1737126243873,28.73439683,218.71,218.56,5.52]
[1737126244073,28.73439683,218.67,218.56,5.52]
[1737126244671,28.73439683,218.71,218.56,5.52]
[1737126245480,28.73439683,218.71,218.67,4.5726]
[1737126245676,28.73439683,218.71,218.56,5.52]
[1737126245981,28.73439683,218.71,218.67,4.5728]
[1737126246182,28.73439683,218.72,218.56,5.52]
[1737126246481,33.30569683,218.75,218.7,4.5722]
[1737126246677,28.73439683,218.75,218.56,5.52]
[1737126246876,28.73439683,218.75,218.58,1.4606]
[1737126247075,33.30639683,218.71,218.65,4.5731]
[1737126247382,28.73439683,218.71,218.58,1.4606]
[1737126247581,33.30639683,218.71,218.61,4.5739]
[1737126247784,28.73439683,218.71,218.58,1.4606]
[1737126248174,4.5724,218.7,218.65,4.5732]
[1737126248375,28.73439683,218.71,218.58,1.4606]
[1737126248576,2.9887,218.77,218.61,28.73439683]
[1737126248781,33.30469683,218.79,218.74,4.5713]
[1737126248976,28.73439683,218.79,218.67,5.5]
[1737126249183,33.30399683,218.83,218.68,1.5081]
[1737126249382,28.73439683,218.79,218.68,3.0732]
[1737126250283,4.5706,218.78,218.68,3.0732]
[1737126250678,28.73439683,218.79,218.68,1.5081]
[1737126250879,28.73439683,218.79,218.75,4.5711]
[1737126251379,33.30479683,218.79,218.68,1.5081]
[1737126251582,28.73439683,218.79,218.72,4.5716]
[1737126251881,4.5689,218.86,218.69,28.73439683]
[1737126252079,28.73439683,218.87,218.82,4.5697]
[1737126252678,28.73439683,218.91,218.78,5.5]
[1737126252889,28.73439683,218.91,218.79,1.5548]
[1737126253482,28.73439683,218.87,218.79,1.5548]
[1737126253885,33.30319683,218.87,218.81,4.5699]
[1737126254576,28.73439683,218.91,218.79,1.5548]
[1737126255084,28.73439683,218.91,218.81,4.5697]
[1737126255276,28.73439683,218.91,218.79,1.5548]
[1737126255882,33.30229683,218.91,218.82,4.5696]
[1737126256089,28.73439683,218.91,218.79,1.5548]
[1737126256589,1.5753,218.97,218.79,1.5548]
[1737126256590,28.73439683,218.95,218.79,1.5548]
[1737126257285,4.5687,218.87,218.81,4.5697]
[1737126257486,4.5687,218.87,218.79,1.5548]
[1737126257687,4.5695,218.83,218.78,5.48]
[1737126257884,28.73439683,218.87,218.74,1.4885]
[1737126258094,3.0347,218.86,218.69,5.48]
[1737126258390,4.5702,218.8,218.69,5.48]
[1737126258890,4.5702,218.8,218.75,4.571]
[1737126259387,3.0347,218.86,218.65,3.0104]
[1737126259388,28.73439683,218.83,218.65,3.0104]
[1737126259589,28.73439683,218.83,218.69,5.46]
[1737126260182,124.0,219.08,218.69,5.46]
[1737126260384,28.73439683,218.95,218.76,28.73439683]
[1737126260591,28.73439683,218.95,218.77,3.0601]
[1737126260781,28.73439683,218.95,218.77,4.5233]
[1737126261087,28.73439683,218.99,218.8,28.73439683]
[1737126261293,28.73439683,218.99,218.81,5.46]
[1737126261899,28.73439683,218.99,218.89,4.568]
[1737126261900,4.5672,218.94,218.89,4.568]
[1737126262092,28.73439683,218.99,218.81,5.46]
[1737126262691,28.73439683,218.95,218.77,4.5233]
[1737126262895,28.73439683,218.95,218.79,5.48]
[1737126263496,17.63869162,218.96,218.79,5.48]
[1737126263801,4.5678,218.91,218.85,4.569]
[1737126263991,17.63869162,218.96,218.77,22.16199162]
[1737126264190,17.63869162,218.96,218.8,5.46]
[1737126264994,17.63869162,218.96,218.85,4.5689]
[1737126265701,4.5678,218.92,218.86,4.5688]
[1737126265901,17.63869162,218.96,218.86,4.5688]
[1737126266292,4.5677,218.92,218.8,5.46]
[1737126266498,4.5677,218.92,218.88,4.5684]
[1737126266801,17.63869162,219.0,218.81,17.63869162]
[1737126267002,3.0469,219.03,218.85,17.63869162]
[1737126267393,17.63869162,219.08,218.89,17.63869162]
[1737126267601,1.4228,219.11,218.93,17.63869162]
[1737126268500,5.9865,219.11,219.01,4.5657]
[1737126268698,1.4228,219.11,219.0,5.44]
[1737126269092,17.63869162,219.16,219.0,5.44]
[1737126269093,4.5632,219.14,219.04,4.5649]
[1737126269397,17.63869162,219.16,219.0,5.44]
[1737126269597,17.63869162,219.16,219.01,17.63869162]
[1737126269804,4.563,219.14,219.07,4.5644]
[1737126270101,4.563,219.14,219.01,17.63869162]
[1737126270400,4.5628,219.16,219.1,4.5638]
[1737126270603,2.9673,219.2,219.05,17.63869162]
[1737126270903,4.5629,219.15,219.08,4.5641]
[1737126271092,20.60599162,219.2,219.02,2.9684]
[1737126271493,31.56720021,219.2,219.02,2.9684]
[1737126272100,4.5635,219.12,219.06,4.5646]
[1737126272698,31.56720021,219.2,219.02,2.9684]
[1737126273602,2.9673,219.2,219.02,2.9684]
[1737126274002,4.5629,219.15,219.09,4.5639]
[1737126274302,2.9673,219.2,219.02,2.9684]
[1737126274699,4.5626,219.16,219.09,4.5639]
[1737126274903,4.5626,219.16,219.05,28.59990021]
[1737126275105,1.4228,219.2,219.05,28.59990021]
[1737126275301,4.5617,219.21,219.09,28.59990021]
[1737126275602,4.5617,219.21,219.1,5.42]
[1737126275803,31.73710021,219.27,219.17,4.5623]
[1737126276107,31.73710021,219.27,219.1,5.42]
[1737126276800,4.5619,219.2,219.14,4.563]
[1737126276999,31.73710021,219.27,219.1,5.42]
[1737126277602,4.5614,219.22,219.1,5.42]
[1737126277795,1.5689,219.27,219.13,28.59990021]
[1737126278001,28.59990021,219.34,219.13,28.59990021]
[1737126278199,4.5601,219.28,219.14,3.0479]
[1737126278403,28.59990021,219.34,219.14,3.0479]
[1737126278596,28.59990021,219.34,219.17,28.59990021]
[1737126279201,2.9658,219.4,219.25,28.59990021]
[1737126279401,2.9658,219.4,219.31,4.5593]
[1737126279809,2.9658,219.4,219.26,1.5052]
[1737126280002,2.9658,219.4,219.25,28.59990021]
[1737126280003,28.59990021,219.38,219.18,5.44]
[1737126280308,28.59990021,219.34,219.18,5.44]
[1737126280707,4.5601,219.28,219.21,4.5615]
[1737126280908,4.5601,219.28,219.18,5.44]
[1737126281107,4.562,219.19,219.15,1.5594]
[1737126281409,28.59990021,219.22,219.11,1.4954]
[1737126281608,28.59990021,219.22,219.1,5.42]
[1737126282199,28.59990021,219.22,219.13,4.5632]
[1737126282200,4.5616,219.22,219.13,4.5632]
[1737126282507,30.15130021,219.26,219.1,5.42]
[1737126282508,1.5514,219.26,219.1,5.42]
[1737126282704,1.5514,219.26,219.11,1.5718]
[1737126282899,4.5614,219.22,219.14,4.5628]
[1737126283207,30.15130021,219.26,219.11,1.5718]
[1737126283705,30.15130021,219.26,219.1,5.42]
[1737126284107,4.5618,219.2,219.13,4.5632]
[1737126285003,30.15130021,219.26,219.11,4.5636]
[1737126285505,28.59990021,219.39,219.23,4.5611]
[1737126285705,1.5726,219.38,219.22,5.44]
[1737126286097,28.59990021,219.35,219.17,28.59990021]
[1737126286307,28.59990021,219.31,219.18,5.44]
[1737126286599,28.59990021,219.35,219.18,5.44]
[1737126286801,28.59990021,219.31,219.18,5.44]
[1737126287198,28.59990021,219.27,219.11,4.5636]
[1737126287399,2.9042,219.26,219.09,5.42]
[1737126287805,4.562,219.19,219.09,5.42]
[1737126288610,2.9042,219.26,219.09,5.42]
[1737126288819,4.5622,219.18,219.13,4.5632]
[1737126289310,4.5616,219.21,219.12,28.59990021]
[1737126289709,1.4238,219.26,219.12,28.59990021]
[1737126290314,30.02370021,219.26,219.11,5.42]
[1737126290907,4.5631,219.14,219.11,5.42]
[1737126291709,4.5636,219.11,219.05,6.9291]
[1737126291914,28.59990021,219.22,219.05,6.9291]
[1737126292209,28.59990021,219.22,219.07,4.5645]
[1737126292712,4.5634,219.13,219.06,5.42]
[1737126292914,28.59990021,219.22,219.08,4.5643]
[1737126293215,4.5637,219.11,219.06,5.42]
[1737126293510,1.4238,219.26,219.02,1.5594]
[1737126293511,28.59990021,219.18,219.02,1.5594]
[1737126293917,4.5647,219.06,219.02,1.5594]
[1737126294515,28.59990021,219.18,219.02,1.5594]
[1737126294716,28.59990021,219.18,219.0,5.4]
[1737126294917,28.59990021,219.1,218.96,1.5465]
[1737126295112,28.59990021,219.14,218.97,28.59990021]
[1737126295317,28.59990021,219.18,218.97,30.12280021]
[1737126295516,28.59990021,219.18,219.03,4.5652]
[1737126295718,4.5639,219.1,219.03,4.5652]
[1737126295914,28.59990021,219.18,219.01,28.59990021]
[1737126296115,1.5444,219.21,219.05,28.59990021]
[1737126296317,1.5444,219.21,219.05,33.99990021]
[1737126296512,4.5631,219.14,219.08,4.5643]
[1737126296920,1.5444,219.21,219.05,33.99990021]
[1737126297217,4.5629,219.15,219.05,33.99990021]
[1737126297418,1.5444,219.21,219.05,33.99990021]
[1737126297618,4.5634,219.12,219.06,4.5645]
[1737126297923,28.59990021,219.33,219.09,28.59990021]
[1737126298123,28.59990021,219.33,219.16,28.59990021]
[1737126298320,1.4608,219.32,219.16,33.99990021]
[1737126299118,1.4608,219.32,219.19,4.5618]
[1737126299119,4.5609,219.24,219.19,4.5618]
[1737126299314,1.4608,219.32,219.19,4.5618]
[1737126300124,4.5603,219.27,219.19,4.5618]
[1737126300422,1.4608,219.32,219.16,33.99990021]
[1737126300825,1.4412,219.34,219.2,28.59990021]
[1737126301124,28.59990021,219.33,219.16,33.99990021]
[1737126301327,1.4412,219.34,219.16,33.99990021]
[1737126301826,1.4412,219.34,219.2,28.59990021]
[1737126302219,4.5595,219.31,219.25,4.5607]
[1737126302421,1.5304,219.36,219.2,28.59990021]
[1737126302724,28.59990021,219.33,219.16,33.99990021]
[1737126302920,28.59990021,219.33,219.16,5.4]
[1737126303122,4.5597,219.31,219.26,4.5605]
[1737126303424,1.5304,219.36,219.19,28.59990021]
[1737126303627,4.5593,219.32,219.24,4.5609]
[1737126303822,1.5492,219.4,219.19,28.59990021]
[1737126304024,1.5492,219.4,219.23,28.59990021]
[1737126304229,1.5492,219.4,219.24,1.5501]
[1737126304423,28.59990021,219.45,219.24,4.509]
[1737126305024,4.5576,219.4,219.27,28.59990021]
[1737126305325,210.42026323,219.55,219.32,28.59990021]
[1737126305630,17.54595881,219.51,219.35,17.54595881]
[1737126305927,17.54595881,219.51,219.31,17.54595881]
[1737126306626,4.5564,219.46,219.39,4.5578]
[1737126306827,17.54595881,219.51,219.35,17.54595881]
[1737126307124,17.54595881,219.51,219.36,9.8288]
[1737126307326,1.431,219.54,219.42,4.5571]
[1737126307926,28.50820639,219.59,219.37,28.50820639]
[1737126308219,4.5552,219.52,219.37,28.50820639]
[1737126308431,51.3119929,219.6,219.41,28.50820639]
[1737126308627,79.82019929,219.6,219.46,4.5563]
[1737126308822,4.5543,219.56,219.46,4.5563]
[1737126309021,79.82019929,219.6,219.41,28.50820639]
[1737126309220,4.83798173,219.62,219.46,5.38]
[1737126309526,4.83798173,219.62,219.47,1.5517]
[1737126309725,28.50820639,219.6,219.47,1.5517]
[1737126309926,4.5551,219.52,219.47,1.5517]
[1737126310127,28.50820639,219.6,219.47,6.1078]